[Event "Gibraltar Challengers B 2019"]
[Site "Caleta"]
[Date "2019.01.26"]
[Round "1"]
[White "Teh, Wee Zhun"]
[Black "Havik, Victor"]
[Result "0-1"]
[ECO "E20"]
[WhiteElo "1818"]
[BlackElo "2088"]
[Annotator "NA"]
[PlyCount "70"]
[EventDate "2019.01.18"]
[EventType "swiss"]
[EventCountry "GGB"]
[SourceTitle "playchess.com"]
[Source "ChessBase"]
[SourceQuality "1"]
[TimeControl "6600+10"]

1. d4 {[%emt 0:00:00]} Nf6 {[%emt 0:10:29]} 2. c4 {[%emt 0:00:46]} e6 {[%emt 0:00:08]} 3. Nc3 {[%emt 0:00:16]} Bb4 {[%emt 0:00:07]} 4. f3 {[%emt 0:00:34]} c5 {[%emt 0:02:36]} 5. d5 {[%emt 0:00:13]} d6 {[%emt 0:00:31]} 6. e4 {[%emt 0:00:19]} O-O {[%emt 0:02:23]} 7. Nge2 {[%emt 0:03:45]} exd5 {[%emt 0:01:04]} 8. cxd5 {[%emt 0:00:45]} Nbd7 {[%emt 0:00:57] E20: Nimzo-Indian: 4 g3 and 4 f3} (8... Nh5 9. g4 Qh4+ 10. Kd2 Nf6 11. Qe1 Qxe1+ 12. Kxe1 a6 13. Bf4 Ne8 14. Ng3 g6 15. Be2 Nd7 16. Rg1 {0-1 (52) Flom,G (2515)-Iturrizaga Bonelli,E (2652) Biel 2018}) 9. Ng3 {[%emt 0:02:29]} Ne5 {[%emt 0:02:47]} 10. Be2 {[%emt 0:00:44]} Bd7 {[%emt 0:01:28]} 11. O-O {[%emt 0:02:04]} Re8 {[%emt 0:02:47]} 12. Bg5 {[%emt 0:15:36]} h6 {[%emt 0:01:50]} 13. Bd2 {[%emt 0:10:23]} a6 {[%emt 0:01:00]} 14. Qc2 $146 {[%emt 0:18:17]} ({Predecessor:} 14. a3 Ba5 {0-1 (23) Brisson,P-Le Duigou,J France 1995}) 14... b5 {[%emt 0:01:01]} 15. f4 {[%emt 0:10:45]} Ng6 {[%emt 0:02:25]} 16. Rae1 {[%emt 0:10:31]} c4 {[%emt 0:04:19]} 17. h3 {[%emt 0:09:07]} Bc5+ {[%emt 0:01:28]} 18. Kh2 {[%emt 0:02:41]} Rc8 {[%emt 0:16:34]} 19. Nd1 {[%emt 0:10:12]} Qb6 {[%emt 0:08:51]} 20. Bf3 {[%emt 0:08:41]} Nh4 {[%emt 0:00:50]} 21. Be2 {[%emt 0:02:14]} Ng6 {[%emt 0:01:34]} 22. Bf3 {[%emt 0:00:02]} b4 {[%emt 0:00:27]} 23. Nh5 $15 {[%emt 0:00:46]} Bd4 {[%emt 0:05:03]} 24. Be3 {[%emt 0:01:06]} Nxh5 {[%emt 0:02:05]} 25. Bxh5 {[%emt 0:00:11]} b3 {[%emt 0:02:22]} 26. axb3 {[%emt 0:00:05]} cxb3 {[%emt 0:00:23]} 27. Qb1 {[%emt 0:00:05]} Rc2 {[%emt 0:00:19]} 28. Nc3 {[%emt 0:00:12]} Bxe3 {[%emt 0:00:21]} 29. Bxg6 {[%emt 0:00:38]} fxg6 {[%emt 0:00:12]} 30. e5 {[%emt 0:01:07]} dxe5 {[%emt 0:00:22]} 31. fxe5 {[%emt 0:00:13]} Rxe5 {[%emt 0:00:13]} 32. Qd1 {[%emt 0:00:09]} Qd6 {[%emt 0:01:09]} 33. Kh1 {[%emt 0:00:17]} Bxh3 {[%emt 0:03:12]} 34. Re2 {[%emt 0:00:15]} Bg4 {[%emt 0:00:24]} 35. Qd3 {[%emt 0:00:08]} Rh5# {[%emt 0:00:07]} 0-1

[Event "Gibraltar Challengers B 2019"]
[Site "Caleta"]
[Date "2019.01.26"]
[Round "1"]
[White "Livesey, R Nigel"]
[Black "Diaz Mino, Pablo"]
[Result "0-1"]
[ECO "A45"]
[WhiteElo "1797"]
[BlackElo "2085"]
[Annotator "NA"]
[PlyCount "60"]
[EventDate "2019.01.18"]
[EventType "swiss"]
[EventCountry "GGB"]
[SourceTitle "playchess.com"]
[Source "ChessBase"]
[SourceQuality "1"]
[TimeControl "6600+10"]

1. d4 {[%emt 0:00:00]} Nf6 {[%emt 0:00:10]} 2. Bf4 {[%emt 0:00:07]} g6 {[%emt 0:02:35]} 3. Nc3 {[%emt 0:00:11]} d5 {[%emt 0:02:51]} 4. e3 {[%emt 0:00:19]} Bg7 {[%emt 0:00:27]} 5. h4 {[%emt 0:00:21]} a6 {[%emt 0:02:23]} 6. a4 {[%emt 0:02:01]} Nc6 {[%emt 0:02:13]} 7. Be2 {[%emt 0:08:03]} h5 {[%emt 0:04:02]} 8. Qd2 {[%emt 0:02:55]} Bf5 {[%emt 0:03:04]} 9. Rc1 {[%emt 0:05:35]} Qd7 {[%emt 0:02:35]} 10. Nf3 {[%emt 0:01:07]} Ng4 {[%emt 0:03:12]} 11. Ng5 {[%emt 0:07:09]} f6 {[%emt 0:14:40]} 12. Nh3 {[%emt 0:00:38]} Rd8 {[%emt 0:09:31]} 13. Bf3 {[%emt 0:03:09]} e6 {[%emt 0:02:59]} 14. Ng1 {[%emt 0:04:37]} O-O {[%emt 0:10:45]} 15. Nge2 {[%emt 0:00:39]} Rfe8 {[%emt 0:02:50]} 16. Kf1 {[%emt 0:02:37]} Bf8 {[%emt 0:02:52]} 17. Bg3 {[%emt 0:13:16]} Bb4 {[%emt 0:01:07]} 18. Nf4 {[%emt 0:01:13]} Na5 {[%emt 0:01:12]} 19. Nd3 $15 {[%emt 0:02:17]} Nc4 {[%emt 0:02:57]} 20. Qe2 {[%emt 0:02:41]} Bxc3 {[%emt 0:03:47]} 21. bxc3 {[%emt 0:00:28]} b6 {[%emt 0:01:52]} 22. Nf4 {[%emt 0:03:13]} Qxa4 {[%emt 0:03:10]} 23. e4 {[%emt 0:03:38]} dxe4 {[%emt 0:00:48]} 24. Bxg4 {[%emt 0:05:27]} Bxg4 {[%emt 0:00:11]} 25. f3 {[%emt 0:01:08]} exf3 {[%emt 0:00:12]} 26. gxf3 {[%emt 0:00:08]} Bxf3 {[%emt 0:00:25]} 27. Qd3 {[%emt 0:01:07]} Be4 {[%emt 0:00:05]} 28. Qe2 {[%emt 0:01:48]} Bxh1 {[%emt 0:00:23]} 29. Nxg6 {[%emt 0:01:59]} Qb5 {[%emt 0:01:00]} 30. Qxh5 {[%emt 0:00:47]} Qxh5 {[%emt 0:00:07]} 0-1

[Event "Gibraltar Challengers B 2019"]
[Site "Caleta"]
[Date "2019.01.26"]
[Round "1"]
[White "Diaz Mino, Daniel"]
[Black "Broekman, Willem"]
[Result "0-1"]
[ECO "C01"]
[WhiteElo "1769"]
[BlackElo "2071"]
[Annotator "NA"]
[PlyCount "46"]
[EventDate "2019.01.18"]
[EventType "swiss"]
[EventCountry "GGB"]
[SourceTitle "playchess.com"]
[Source "ChessBase"]
[SourceQuality "1"]
[TimeControl "6600+10"]

1. e4 {[%emt 0:00:00]} e6 {[%emt 0:00:00]} 2. d4 {[%emt 0:00:02]} d5 {[%emt 0:00:00]} 3. exd5 {[%emt 0:00:06]} exd5 {[%emt 0:00:00]} 4. Bd3 {[%emt 0:00:12]} Bd6 {[%emt 0:00:00]} 5. Nf3 {[%emt 0:00:09]} Ne7 {[%emt 0:00:05]} 6. c3 {[%emt 0:00:30] LiveBook: 6 Games} c6 {[%emt 0:01:35] C01: French: Exchange Variation} 7. O-O {[%emt 0:01:00]} O-O {[%emt 0:07:23]} (7... Bg4 8. Re1 Nd7 9. Nbd2 Bh5 10. Nf1 Bg6 11. Be2 Qc7 12. a4 O-O 13. Nh4 Be4 14. f3 Bg6 15. Nxg6 Nxg6 {½-½ (26) Nevednichy,V (2542)-Meier,G (2648) Batumi 2018}) 8. Qc2 {[%emt 0:02:23]} h6 {[%emt 0:06:21]} 9. Re1 {[%emt 0:01:35]} Bg4 {[%emt 0:01:31]} 10. Ne5 {[%emt 0:10:03]} Bh5 {[%emt 0:08:00]} 11. f4 $146 {[%emt 0:06:53]} ({Predecessor:} 11. f3 Bc7 12. Na3 Nd7 13. Bf4 Nxe5 14. Bxe5 Bg6 15. Bxc7 Qxc7 {0-1 (27) Zaskalski,P (1800)-Jedynak,R (2140) Augustow 1996}) 11... Nd7 {[%emt 0:01:59]} 12. Re3 {[%emt 0:03:31]} f6 {[%emt 0:08:55]} 13. g4 {[%emt 0:19:00]} fxe5 {[%emt 0:00:00]} 14. fxe5 {[%emt 0:07:09]} Bxg4 {[%emt 0:00:00]} 15. Rg3 {[%emt 0:00:00] [#]} Nxe5 $1 {[%emt 0:00:00]} 16. dxe5 {[%emt 0:00:00]} Bc5+ {[%emt 0:00:00]} 17. Kg2 {[%emt 0:00:00]} Rf2+ {[%emt 0:06:02]} 18. Qxf2 {[%emt 0:00:00]} Bxf2 {[%emt 0:00:11]} 19. Rxg4 {[%emt 0:00:00]} h5 {[%emt 0:04:26]} 20. Rg5 {[%emt 0:00:00]} Qb6 {[%emt 0:07:42]} 21. Nd2 {[%emt 0:14:52]} Be1 {[%emt 0:06:39]} 22. Kh1 {[%emt 0:02:26]} Rf8 {[%emt 0:03:56]} 23. Rg1 {[%emt 0:05:34]} Qe3 $19 {[%emt 0:02:21] Double Attack} 0-1

[Event "Gibraltar Challengers B 2019"]
[Site "Caleta"]
[Date "2019.01.26"]
[Round "1"]
[White "Hng, Mei-Xian Eunice"]
[Black "Alami, Halim"]
[Result "0-1"]
[ECO "C42"]
[WhiteElo "1718"]
[BlackElo "2059"]
[Annotator "NA"]
[PlyCount "95"]
[EventDate "2019.01.18"]
[EventType "swiss"]
[EventCountry "GGB"]
[SourceTitle "playchess.com"]
[Source "ChessBase"]
[SourceQuality "1"]
[TimeControl "6600+10"]

1. e4 {[%emt 0:00:00]} e5 {[%emt 0:01:05]} 2. Nf3 {[%emt 0:00:15]} Nf6 {[%emt 0:00:49]} 3. Nxe5 {[%emt 0:00:39]} d6 {[%emt 0:00:00]} 4. Nf3 {[%emt 0:00:29]} Nxe4 {[%emt 0:00:00]} 5. Bc4 {[%emt 0:01:08]} d5 {[%emt 0:04:25]} 6. Bb3 {[%emt 0:01:39] C42: Petroff Defence: 3 Nxe5 and unusual White 3rd moves} (6. Be2 Bc5 7. O-O O-O 8. d4 Bd6 9. c4 c6 10. c5 Bc7 11. Nc3 f5 12. Qb3 Kh8 13. Be3 h6 14. Nd2 f4 15. Ndxe4 dxe4 16. Bd2 f3 17. gxf3 exf3 18. Bd3 Qh4 {0-1 (18) Nguyen,M (1918)-Hoang,L (1944) Hai Phong 2018}) 6... c6 {[%emt 0:01:13]} 7. d3 {[%emt 0:02:29]} Nf6 {[%emt 0:00:17]} 8. O-O {[%emt 0:03:13]} Be7 $146 {[%emt 0:00:10]} ({Predecessor:} 8... Bd6 9. Re1+ Be6 10. Nd4 Qd7 11. Qe2 O-O 12. Nxe6 Re8 13. Bg5 Rxe6 {0-1 (71) Davidsson,O (1379)-Sibashvili,D Budva 2013}) 9. h3 {[%emt 0:02:06]} O-O {[%emt 0:00:13]} 10. c3 {[%emt 0:02:26]} Nbd7 {[%emt 0:03:21]} 11. Be3 {[%emt 0:03:21]} Re8 {[%emt 0:00:42]} 12. a4 {[%emt 0:05:09]} Nf8 {[%emt 0:00:44]} 13. Re1 {[%emt 0:02:12]} Ng6 {[%emt 0:00:42]} 14. Nbd2 {[%emt 0:01:59]} Nh5 {[%emt 0:08:09]} 15. Bc2 {[%emt 0:07:06]} Nhf4 {[%emt 0:04:30]} 16. d4 {[%emt 0:05:02]} Bd6 {[%emt 0:02:40]} 17. Nf1 {[%emt 0:05:51]} Bd7 {[%emt 0:02:13]} 18. Ng3 {[%emt 0:06:49]} Qf6 {[%emt 0:01:27]} 19. Bxf4 {[%emt 0:08:04]} Nxf4 {[%emt 0:03:37]} 20. Nh2 {[%emt 0:02:56]} Bxh3 {[%emt 0:05:41]} 21. Rxe8+ {[%emt 0:06:22]} Rxe8 {[%emt 0:00:03]} 22. Bxh7+ {[%emt 0:06:38]} Kxh7 {[%emt 0:06:29]} 23. Qc2+ {[%emt 0:00:07]} Kg8 {[%emt 0:00:45]} 24. gxh3 {[%emt 0:00:15]} Qh4 {[%emt 0:01:12]} 25. Qf5 {[%emt 0:02:46]} Nxh3+ {[%emt 0:01:48]} 26. Kg2 {[%emt 0:03:19]} Nf4+ {[%emt 0:03:00]} 27. Kh1 {[%emt 0:02:10]} Re6 {[%emt 0:11:07]} 28. Qg4 {[%emt 0:08:50]} Qxg4 {[%emt 0:10:45]} 29. Nxg4 {[%emt 0:00:06]} Nd3 {[%emt 0:00:50]} 30. Nf5 {[%emt 0:06:25]} Bf4 {[%emt 0:02:49]} 31. Kg2 {[%emt 0:00:31]} g6 {[%emt 0:01:02]} 32. Nfe3 {[%emt 0:00:57]} f5 {[%emt 0:05:18]} 33. Ne5 {[%emt 0:03:36]} Nxe5 {[%emt 0:01:32]} 34. dxe5 {[%emt 0:00:13]} Bxe5 {[%emt 0:00:33]} 35. Rd1 {[%emt 0:00:42]} Re7 {[%emt 0:00:30]} 36. Kf3 {[%emt 0:00:40]} Kf7 {[%emt 0:00:36]} 37. a5 {[%emt 0:01:19]} Ke6 {[%emt 0:01:39]} 38. a6 {[%emt 0:00:39]} g5 {[%emt 0:01:13]} 39. Nc2 {[%emt 0:01:05]} g4+ {[%emt 0:00:19]} 40. Kg2 {[%emt 0:00:25]} c5 $19 {[%emt 0:02:33]} ({Don't play} 40... bxa6 41. Nb4 $19) 41. Ne3 {[%emt 0:01:12]} d4 {[%emt 0:00:18]} 42. cxd4 {[%emt 0:00:19]} Bxd4 {[%emt 0:00:54]} 43. axb7 {[%emt 0:02:42]} Rxb7 {[%emt 0:00:03]} 44. Nc4 {[%emt 0:00:12]} Rb4 {[%emt 0:00:46]} 45. Na5 {[%emt 0:00:55]} Rxb2 {[%emt 0:00:21]} 46. Re1+ {[%emt 0:00:25]} Kf6 {[%emt 0:00:15]} 47. Nc4 {[%emt 0:00:20]} Be3 48. Nxe3 0-1

[Event "Gibraltar Challengers B 2019"]
[Site "Caleta"]
[Date "2019.01.27"]
[Round "2"]
[White "Meszaros, Andras"]
[Black "Osuna Vega, Enrique"]
[Result "1-0"]
[ECO "A04"]
[WhiteElo "2226"]
[BlackElo "2116"]
[Annotator "NA"]
[PlyCount "89"]
[EventDate "2019.01.18"]
[EventType "swiss"]
[EventCountry "GGB"]
[SourceTitle "playchess.com"]
[Source "ChessBase"]
[SourceQuality "1"]
[TimeControl "6600+10"]

{[%evp 8,88,0,0,0,-1,1,0,32767,0,34,32767,32767,32767,32767,18,32767,2,32767,32767,40,39,61,56,53,63,64,38,196,235,258,275,262,32767,32767,32767,32767,32767,32767,170,198,159,32767,157,221,237,224,143,172,174,174,150,32767,32767,233,32767,235,205,216,205,32767,307,32767,204,241,243,288,310,365,378,364,370,1339,542,32767,32767,32767,32767,32767,616,29989,29990,29994]} 1. e4 {[%emt 0:00:00]} e6 {[%emt 0:01:17]} 2. d3 {[%emt 0:00:24]} c5 {[%emt 0:03:00]} 3. Nf3 {[%emt 0:00:12]} Nc6 {[%emt 0:00:26]} 4. g3 {[%emt 0:00:13]} g6 {[%emt 0:01:41]} 5. Bg2 {[%emt 0:00:09]} Bg7 {[%emt 0:00:06]} 6. O-O {[%emt 0:00:27]} Nge7 {[%emt 0:00:28]} 7. Re1 {[%emt 0:00:33]} d6 {[%emt 0:03:23]} 8. c3 {[%emt 0:02:44]} O-O {[%emt 0:00:52] LiveBook: 137 Games} 9. Bg5 {[%emt 0:02:35] A04: Unusual lines after 1 Nf3 and King's Indian Attack} (9. Na3 e5 10. Nc2 h6 11. b4 b6 12. Be3 Kh7 13. bxc5 bxc5 14. d4 exd4 15. cxd4 d5 16. exd5 Nxd5 17. dxc5 Nxe3 18. Nxe3 Bxa1 19. Qxa1 {½-½ (102) Lie,K (2533)-Ragger,M (2689) Norway 2016}) 9... h6 {[%emt 0:02:18]} 10. Be3 {[%emt 0:00:11]} b6 {[%emt 0:00:50]} 11. Qd2 {[%emt 0:02:21]} Kh7 {[%emt 0:00:09]} 12. d4 {[%emt 0:01:29]} cxd4 $146 {[%emt 0:05:33]} ({Predecessor:} 12... e5 13. Na3 Bg4 14. d5 Bxf3 15. Bxf3 Nb8 16. Bg2 Nd7 {½-½ (54) Malano,F (2050)-Frank,A (2020) Asti 1998}) 13. Nxd4 {[%emt 0:14:38]} Ne5 {[%emt 0:04:21]} 14. Na3 {[%emt 0:00:07]} Bb7 {[%emt 0:05:16]} 15. Rad1 {[%emt 0:00:17]} d5 {[%emt 0:19:21]} 16. Qe2 {[%emt 0:08:24]} Qc8 {[%emt 0:00:29]} 17. Ndb5 {[%emt 0:03:30]} Qb8 $2 {[%emt 0:23:39] [#]} (17... dxe4 $11 18. Nd6 Qb8) 18. Bf4 $1 {[%emt 0:09:32]} g5 {[%emt 0:04:44]} 19. Bxe5 $1 {[%emt 0:00:41]} Qxe5 {[%emt 0:00:13]} 20. Qc2 {[%emt 0:02:16]} d4 {[%emt 0:07:41]} 21. cxd4 {[%emt 0:01:04]} Qb8 {[%emt 0:00:35]} 22. Nd6 {[%emt 0:02:40]} Kg8 {[%emt 0:02:46]} 23. Nab5 {[%emt 0:06:18]} Rd8 {[%emt 0:03:52]} 24. e5 {[%emt 0:06:03]} Bxg2 {[%emt 0:01:10]} 25. Kxg2 {[%emt 0:00:07]} Nd5 {[%emt 0:01:46]} (25... a6 $16) 26. Qe4 {[%emt 0:00:41]} a6 {[%emt 0:01:15]} 27. Nc3 {[%emt 0:00:06]} Bf8 {[%emt 0:01:09]} 28. Nc4 {[%emt 0:23:13]} Nxc3 {[%emt 0:06:31]} 29. bxc3 {[%emt 0:00:05]} Qc7 {[%emt 0:00:30]} 30. Ne3 {[%emt 0:00:52]} Bg7 {[%emt 0:00:27]} 31. c4 {[%emt 0:00:23]} Rac8 {[%emt 0:00:16]} 32. Rb1 {[%emt 0:03:25]} Rd7 {[%emt 0:00:23]} 33. d5 {[%emt 0:08:01]} Bxe5 {[%emt 0:00:51]} 34. dxe6 {[%emt 0:01:23]} fxe6 {[%emt 0:00:47]} 35. Ng4 {[%emt 0:01:48]} Bg7 {[%emt 0:01:01]} 36. Qxe6+ {[%emt 0:00:05]} Kh8 {[%emt 0:01:48]} 37. Rxb6 {[%emt 0:00:24]} Re7 {[%emt 0:00:51]} 38. Qxe7 {[%emt 0:01:33]} Qxb6 {[%emt 0:00:02]} 39. Re6 {[%emt 0:00:50]} Qd4 $2 {[%emt 0:00:22]} (39... Qc7 40. Qxc7 Rxc7 41. Rxa6 Kh7) 40. Nxh6 {[%emt 0:00:44]} (40. Rg6 $142) 40... Qxc4 {[%emt 0:00:06]} 41. Nf7+ {[%emt 0:00:17]} Kg8 {[%emt 0:00:02]} 42. Nxg5 {[%emt 0:00:25]} Qd5+ {[%emt 0:00:04]} 43. Ne4 {[%emt 0:00:13]} Qxa2 {[%emt 0:01:00]} 44. Rg6 {[%emt 0:00:31]} Qb2 {[%emt 0:02:07]} 45. Nf6+ {[%emt 0:00:13]} 1-0

[Event "Gibraltar Challengers B 2019"]
[Site "Caleta"]
[Date "2019.01.27"]
[Round "2"]
[White "Dolzhikova, Olga"]
[Black "Hassomal Daswani, Birjkumar"]
[Result "1-0"]
[ECO "B22"]
[WhiteElo "2224"]
[BlackElo "2008"]
[Annotator "NA"]
[PlyCount "115"]
[EventDate "2019.01.18"]
[EventType "swiss"]
[EventCountry "GGB"]
[SourceTitle "playchess.com"]
[Source "ChessBase"]
[SourceQuality "1"]
[TimeControl "6600+10"]

1. e4 {[%emt 0:07:50]} c5 {[%emt 0:01:32]} 2. c3 {[%emt 0:00:04]} d5 {[%emt 0:00:29]} 3. exd5 {[%emt 0:00:08]} Qxd5 {[%emt 0:00:07]} 4. d4 {[%emt 0:00:02]} e6 {[%emt 0:00:44]} 5. Nf3 {[%emt 0:00:50]} Nf6 {[%emt 0:00:41]} 6. Bd3 {[%emt 0:00:16]} Be7 {[%emt 0:00:26]} 7. O-O {[%emt 0:00:57]} O-O {[%emt 0:00:39]} 8. Qe2 {[%emt 0:01:00]} Nc6 {[%emt 0:00:51]} 9. Be3 {[%emt 0:01:55]} cxd4 {[%emt 0:01:28]} 10. cxd4 {[%emt 0:00:10]} b6 {[%emt 0:00:30]} 11. Nc3 {[%emt 0:01:06]} Qd6 {[%emt 0:00:45]} 12. a3 {[%emt 0:04:18]} Bb7 {[%emt 0:00:56]} 13. Rad1 {[%emt 0:00:08]} Rac8 {[%emt 0:01:39]} 14. Bb1 {[%emt 0:05:42]} Rfd8 {[%emt 0:01:41] LiveBook: 22 Games} 15. Rfe1 {[%emt 0:02:38]} h6 {[%emt 0:00:40] B22: Sicilian: 2 c3} 16. h3 {[%emt 0:08:00]} (16. Qc2 $14) 16... Bf8 {[%emt 0:00:45]} 17. Bc1 {[%emt 0:07:32]} g6 $146 {[%emt 0:01:51]} ({Predecessor:} 17... Nd5 18. Qe4 g6 19. Qg4 Nxc3 20. bxc3 {1-0 (48) Hasanzade,T (2377)-Guliev,L (2365) Baku 2017}) 18. Ba2 {[%emt 0:03:56]} Ne7 {[%emt 0:03:14]} 19. Nb5 {[%emt 0:23:41]} Qb8 {[%emt 0:06:58]} 20. Ne5 {[%emt 0:03:14]} Ned5 {[%emt 0:04:24]} 21. Bb1 {[%emt 0:08:09] [#]} ({Don't blunder} 21. Nxf7 $2 Kxf7 22. Qxe6+ Kg7 $19) (21. Bd2 $11) 21... Rxc1 {[%emt 0:09:02]} (21... a6 $1 $17 {[%cal Ra6b5]} 22. Nc3 Rxc3 23. bxc3 Nxc3) 22. Rxc1 {[%emt 0:00:58]} Nf4 {[%emt 0:00:27]} 23. Qd2 {[%emt 0:20:20]} Nxg2 {[%emt 0:00:41]} 24. Red1 {[%emt 0:00:43]} g5 {[%emt 0:03:56]} 25. Rc7 {[%emt 0:02:42]} Nh4 $1 {[%emt 0:02:46]} 26. Qe2 {[%emt 0:02:39]} a6 {[%emt 0:04:47]} 27. Rxf7 {[%emt 0:01:34]} axb5 $2 {[%emt 0:07:31]} (27... Nf3+ $1 $14 28. Nxf3 Kxf7) 28. Rxf6 {[%emt 0:00:04]} Bd5 {[%emt 0:06:18]} (28... Qc7 $142 29. Ba2 Kg7 30. Rf7+ Qxf7 {[%mdl 64] Remove Defender}) 29. Qc2 {[%emt 0:01:12]} (29. Qh5 $142 Qa7 30. Rf7) 29... Nf5 {[%emt 0:02:28]} 30. Rxf5 {[%emt 0:00:33]} exf5 {[%emt 0:00:07]} 31. Qxf5 {[%emt 0:00:05]} Qb7 {[%emt 0:01:02]} 32. Ng4 $2 {[%emt 0:00:52]} (32. Rc1 $18 {has better winning chances.}) 32... Bg7 {[%emt 0:02:35]} 33. Qh7+ {[%emt 0:00:10]} Kf8 {[%emt 0:00:32]} 34. Nxh6 {[%emt 0:00:11]} Qd7 {[%emt 0:04:39]} 35. Nf5 {[%emt 0:01:11]} Qf7 {[%emt 0:06:28]} 36. Qxg7+ {[%emt 0:00:08]} (36. Re1 $18 {has better winning chances.} Qf6 37. Re7) 36... Qxg7 {[%emt 0:00:10]} 37. Nxg7 {[%emt 0:00:01]} Kxg7 {[%emt 0:00:17]} 38. Bc2 {[%emt 0:00:47]} Rc8 {[%emt 0:02:47]} 39. Bd3 {[%emt 0:00:04]} Kf6 {[%emt 0:02:34]} 40. f3 {[%emt 0:00:11]} Ke6 {[%emt 0:00:38]} 41. Kf2 {[%emt 0:00:07]} Rf8 {[%emt 0:00:29]} 42. Re1+ {[%emt 0:00:08]} Kd6 {[%emt 0:00:22]} 43. Re3 {[%emt 0:00:17]} ({Weaker is} 43. Bxb5 Rxf3+ {[%mdl 64] Double Attack} 44. Kg1 Rg3+ 45. Kf1 Rxh3 $11) 43... Rf4 {[%emt 0:00:50]} 44. Be4 {[%emt 0:00:16]} Be6 {[%emt 0:00:20]} 45. Rc3 {[%emt 0:00:16]} Kd7 {[%emt 0:00:47]} 46. Ke3 {[%emt 0:00:15]} Bc4 {[%emt 0:01:11]} 47. b3 {[%emt 0:00:04]} Bf1 {[%emt 0:00:41]} 48. Rc1 {[%emt 0:00:02]} Bxh3 {[%emt 0:00:26]} 49. Bc6+ {[%emt 0:00:06]} Ke7 {[%emt 0:01:52]} 50. Bxb5 {[%emt 0:00:05]} Be6 {[%emt 0:00:20]} 51. Bc4 {[%emt 0:00:22]} Bd7 {[%emt 0:00:10]} 52. Rh1 {[%emt 0:00:20]} Rf6 {[%emt 0:01:16]} 53. Rg1 {[%emt 0:00:10]} b5 {[%emt 0:00:30]} 54. Bd3 {[%emt 0:00:06]} Ra6 {[%emt 0:00:52]} 55. Ra1 {[%emt 0:00:16]} Rc6 {[%emt 0:00:39]} 56. Kd2 {[%emt 0:00:10]} Rd6 $18 {[%emt 0:00:22]} (56... Rf6 {might work better.} 57. Be4 g4 58. fxg4 Rf4) 57. Kc3 {[%emt 0:00:04]} Kf6 {[%emt 0:00:36]} 58. Rh1 {[%emt 0:00:08]} 1-0

[Event "Gibraltar Challengers B 2019"]
[Site "Caleta"]
[Date "2019.01.27"]
[Round "2"]
[White "Elishev, Ivan"]
[Black "Havik, Victor"]
[Result "1/2-1/2"]
[ECO "D00"]
[WhiteElo "2224"]
[BlackElo "2088"]
[Annotator "NA"]
[PlyCount "119"]
[EventDate "2019.01.18"]
[EventType "swiss"]
[EventCountry "GGB"]
[SourceTitle "playchess.com"]
[Source "ChessBase"]
[SourceQuality "1"]
[TimeControl "6600+10"]

1. d4 {[%emt 0:33:13]} d5 {[%emt 0:11:01]} 2. Nc3 {[%emt 0:00:00]} Bf5 {[%emt 0:02:38]} 3. f3 {[%emt 0:00:00]} Nf6 {[%emt 0:01:31]} 4. g4 {[%emt 0:00:00] D00: 1 d4 d5: Unusual lines} Bg6 {[%emt 0:00:46]} 5. g5 {[%emt 0:00:00]} (5. h4 h6 6. Nh3 c5 7. Nf4 Bh7 8. g5 cxd4 9. Qxd4 Nc6 10. Qg1 Nb4 11. gxf6 Nxc2+ {1-0 (30) Arman,D (2377)-Tikkanen,H (2504) Gothenburg 2017}) 5... Nh5 {[%emt 0:02:00]} 6. e4 {[%emt 0:00:00]} e6 {[%emt 0:00:06]} 7. Be2 {[%emt 0:17:03]} h6 {[%emt 0:03:46]} (7... c5 $15) 8. f4 {[%emt 0:22:05]} hxg5 {[%emt 0:01:21]} 9. f5 {[%emt 0:00:02]} exf5 {[%emt 0:01:07]} 10. exf5 {[%emt 0:00:29]} Bxf5 $146 {[%emt 0:02:07]} ({Predecessor:} 10... Ng3 11. fxg6 Nxh1 12. gxf7+ Kxf7 {0-1 (47) Marzluf,D-Metz,U Baden-Baden 1991}) 11. Bxh5 {[%emt 0:01:41]} g4 {[%emt 0:02:11]} 12. Qe2+ {[%emt 0:02:37]} Qe7 {[%emt 0:00:17]} 13. Nxd5 {[%emt 0:01:41]} Qxe2+ {[%emt 0:00:14]} 14. Nxe2 {[%emt 0:00:21]} Bd6 {[%emt 0:37:18]} 15. Ng3 {[%emt 0:13:11]} Be6 {[%emt 0:11:31]} 16. Nf4 {[%emt 0:01:51]} Bxf4 {[%emt 0:06:26]} 17. Bxf4 {[%emt 0:00:02]} Nc6 {[%emt 0:01:41]} (17... g6 $142 18. O-O-O (18. Bxc7 gxh5 19. O-O-O Bd5 $16) 18... gxh5) 18. O-O-O {[%emt 0:06:57]} O-O-O {[%emt 0:00:10]} 19. d5 {[%emt 0:06:02]} Bxd5 {[%emt 0:03:32]} 20. Bxg4+ {[%emt 0:00:01]} Kb8 {[%emt 0:00:00]} 21. Rhf1 {[%emt 0:02:20]} Rxh2 {[%emt 0:00:49]} 22. Nf5 {[%emt 0:01:30]} Rh7 {[%emt 0:00:24]} 23. Bf3 {[%emt 0:00:50]} Bxf3 {[%emt 0:01:41]} 24. Rxd8+ {[%emt 0:00:01]} Nxd8 {[%emt 0:00:12]} 25. Rxf3 {[%emt 0:00:01]} Ne6 {[%emt 0:00:17]} 26. Be3 {[%emt 0:00:15]} c5 {[%emt 0:05:51]} (26... Kc8 $16 27. b3 (27. Bxa7 b6 $14) 27... b6) 27. Nd6 {[%emt 0:00:28]} f6 {[%emt 0:00:15]} 28. Ne4 {[%emt 0:00:55]} b6 {[%emt 0:00:14]} 29. Nxf6 {[%emt 0:00:48]} gxf6 {[%emt 0:00:18]} 30. Rxf6 {[%emt 0:00:01]} Nc7 {[%emt 0:00:59]} 31. Bf4 {[%emt 0:00:09]} Kb7 {[%emt 0:00:01]} 32. c4 {[%emt 0:00:23]} Na6 {[%emt 0:02:22]} 33. a3 {[%emt 0:00:02]} Nb8 {[%emt 0:00:07]} 34. Bxb8 {[%emt 0:00:18]} Kxb8 {[%emt 0:00:07]} 35. Kc2 {[%emt 0:00:01]} Kb7 {[%emt 0:01:15]} 36. b4 {[%emt 0:00:02]} Rh2+ {[%emt 0:01:14]} 37. Kb3 {[%emt 0:00:01]} cxb4 {[%emt 0:03:52]} 38. axb4 {[%emt 0:00:02]} Rh7 {[%emt 0:01:19]} 39. b5 {[%emt 0:00:30]} Rc7 {[%emt 0:00:45]} 40. Kc3 {[%emt 0:00:21]} a6 {[%emt 0:00:28]} 41. bxa6+ {[%emt 0:00:09]} Kxa6 {[%emt 0:00:01]} 42. Kb4 {[%emt 0:00:06]} Rc5 {[%emt 0:00:57]} 43. Rf7 {[%emt 0:00:20]} Re5 {[%emt 0:00:28]} 44. Rd7 {[%emt 0:00:02]} Re1 {[%emt 0:01:25]} 45. Kc3 {[%emt 0:00:10]} Rc1+ {[%emt 0:00:05]} 46. Kb3 {[%emt 0:00:03]} Re1 {[%emt 0:00:14]} 47. Kb4 {[%emt 0:00:12]} Rb1+ {[%emt 0:00:03]} 48. Kc3 {[%emt 0:00:01]} Rc1+ {[%emt 0:00:02]} 49. Kb3 {[%emt 0:00:01]} Re1 {[%emt 0:00:03]} 50. Rf7 {[%emt 0:00:13]} Rg1 {[%emt 0:00:33]} 51. Kc3 {[%emt 0:00:06]} Rg3+ {[%emt 0:00:34]} 52. Kb4 {[%emt 0:00:06]} Rg1 {[%emt 0:00:03]} 53. Rf6 {[%emt 0:00:06]} Rc1 {[%emt 0:00:28]} 54. Rh6 {[%emt 0:00:06]} Rc2 {[%emt 0:00:07]} 55. Rh1 {[%emt 0:00:13]} Rf2 {[%emt 0:00:07]} 56. Rh6 {[%emt 0:00:10]} Rc2 {[%emt 0:00:03]} 57. Kb3 {[%emt 0:00:06]} Rc1 {[%emt 0:00:01]} 58. Rh7 {[%emt 0:00:16]} b5 {[%emt 0:00:43]} 59. Rh6+ {[%emt 0:00:30]} Ka5 $11 {[%emt 0:00:03]} 60. cxb5 {[%emt 0:00:14]} 1/2-1/2